[Event "CAMPEONATO NACIONAL ABSOLUTO DE CHILE 2019"]
[Site "Torre ENTEL, Chile"]
[Date "2019.02.22"]
[Round "4.5"]
[White "Henriquez Villagra, Cristobal"]
[Black "Garcia Cardenas, Pablo"]
[Result "1-0"]
[TimeControl "90 minutos mas 30 segundos incremento por movida"]
[WhiteTitle "GM"]
[BlackTitle "IM"]
[WhiteFideId "3409350"]
[BlackFideId "3406903"]
[WhiteElo "2508"]
[BlackElo "2449"]

1. e4 {[%clk 01:30:09]} {[%emt 00:00:51]} e5 {[%clk 01:30:55]} {[%emt
00:00:06]} 2. Bc4 {[%clk 01:30:04]} {[%emt 00:00:35]} Nf6 {[%clk 01:30:44]}
{[%emt 00:00:41]} 3. Nc3 {[%clk 01:30:26]} {[%emt 00:00:08]} Bc5 {[%clk
01:25:57]} {[%emt 00:05:16]} 4. d3 {[%clk 01:27:46]} {[%emt 00:03:10]} Nc6
{[%clk 01:22:40]} {[%emt 00:03:48]} 5. Bg5 {[%clk 01:18:02]} {[%emt 00:10:14]}
h6 {[%clk 01:20:39]} {[%emt 00:02:31]} 6. Bh4 {[%clk 01:17:22]} {[%emt
00:01:09]} Na5 {[%clk 01:09:06]} {[%emt 00:12:03]} 7. a3 {[%clk 00:59:12]}
{[%emt 00:18:40]} Nxc4 {[%clk 01:08:04]} {[%emt 00:01:32]} 8. dxc4 {[%clk
00:58:36]} {[%emt 00:01:06]} d6 {[%clk 00:51:07]} {[%emt 00:17:27]} 9. Qd3
{[%clk 00:39:42]} {[%emt 00:19:24]} a5 {[%clk 00:38:52]} {[%emt 00:12:45]} 10.
Nge2 {[%clk 00:39:15]} {[%emt 00:00:56]} g5 {[%clk 00:33:04]} {[%emt 00:06:18]}
11. Bg3 {[%clk 00:39:39]} {[%emt 00:00:07]} Nh5 {[%clk 00:33:22]} {[%emt
00:00:12]} 12. O-O-O {[%clk 00:37:04]} {[%emt 00:03:06]} Be6 {[%clk 00:29:15]}
{[%emt 00:04:36]} 13. Na4 {[%clk 00:26:32]} {[%emt 00:11:02]} Ba7 {[%clk
00:22:47]} {[%emt 00:06:58]} 14. Nec3 {[%clk 00:22:59]} {[%emt 00:04:03]} Qe7
{[%clk 00:08:35]} {[%emt 00:14:42]} 15. c5 {[%clk 00:17:19]} {[%emt 00:06:10]}
O-O-O {[%clk 00:04:09]} {[%emt 00:04:56]} 16. Qb5 {[%clk 00:13:35]} {[%emt
00:04:14]} Nxg3 {[%clk 00:01:55]} {[%emt 00:02:44]} 17. hxg3 {[%clk 00:13:59]}
{[%emt 00:00:06]} Bxc5 {[%clk 00:00:32]} {[%emt 00:01:53]} 18. Nxc5 {[%clk
00:13:58]} {[%emt 00:00:30]} dxc5 {[%clk 00:01:01]} {[%emt 00:00:01]} 19. Qxa5
{[%clk 00:14:23]} {[%emt 00:00:05]} c6 {[%clk 00:00:45]} {[%emt 00:00:46]} 20.
Na4 {[%clk 00:13:18]} {[%emt 00:01:36]} Kb8 {[%clk 00:00:42]} {[%emt 00:00:33]}
21. Nxc5 {[%clk 00:12:55]} {[%emt 00:00:53]} Bc8 {[%clk 00:00:34]} {[%emt
00:00:37]} 22. Rxd8 {[%clk 00:05:53]} {[%emt 00:07:32]} Rxd8 {[%clk 00:01:03]}
{[%emt 00:00:02]} 23. Rxh6 {[%clk 00:05:21]} {[%emt 00:01:02]} g4 {[%clk
00:01:30]} {[%emt 00:00:03]} 24. Rh1 {[%clk 00:05:27]} {[%emt 00:00:24]} Qg5+
{[%clk 00:00:51]} {[%emt 00:01:09]} 25. Kb1 {[%clk 00:05:52]} {[%emt 00:00:05]}
Qd2 {[%clk 00:00:49]} {[%emt 00:00:32]} 26. Qxd2 {[%clk 00:05:27]} {[%emt
00:00:55]} Rxd2 {[%clk 00:01:17]} {[%emt 00:00:01]} 27. Nd3 {[%clk 00:05:52]}
{[%emt 00:00:05]} f5 {[%clk 00:01:44]} {[%emt 00:00:03]} 28. Re1 {[%clk
00:05:57]} {[%emt 00:00:25]} fxe4 {[%clk 00:02:04]} {[%emt 00:00:10]} 29. Kc1
{[%clk 00:06:23]} {[%emt 00:00:04]} 1-0

[Event "CAMPEONATO NACIONAL ABSOLUTO DE CHILE 2019"]
[Site "Torre ENTEL, Chile"]
[Date "2019.02.23"]
[Round "5.2"]
[White "Garcia Cardenas, Pablo"]
[Black "Torres Bravo, Cristobal"]
[Result "1-0"]
[TimeControl "90 minutos mas 30 segundos incremento por movida"]
[WhiteTitle "IM"]
[BlackTitle "FM"]
[WhiteFideId "3406903"]
[BlackFideId "3405940"]
[WhiteElo "2449"]
[BlackElo "2347"]

1. d4 {[%clk 01:30:57]} {[%emt 00:00:02]} Nf6 {[%clk 01:30:54]} {[%emt
00:00:06]} 2. c4 {[%clk 01:31:23]} {[%emt 00:00:04]} e6 {[%clk 01:31:20]}
{[%emt 00:00:04]} 3. Nc3 {[%clk 01:31:49]} {[%emt 00:00:04]} c5 {[%clk
01:31:46]} {[%emt 00:00:04]} 4. d5 {[%clk 01:32:10]} {[%emt 00:00:10]} exd5
{[%clk 01:32:09]} {[%emt 00:00:07]} 5. cxd5 {[%clk 01:32:35]} {[%emt 00:00:04]}
d6 {[%clk 01:32:34]} {[%emt 00:00:05]} 6. e4 {[%clk 01:33:00]} {[%emt
00:00:06]} g6 {[%clk 01:32:41]} {[%emt 00:00:23]} 7. f4 {[%clk 01:33:23]}
{[%emt 00:00:06]} Bg7 {[%clk 01:32:05]} {[%emt 00:01:06]} 8. Bb5+ {[%clk
01:33:48]} {[%emt 00:00:06]} Nfd7 {[%clk 01:32:03]} {[%emt 00:00:32]} 9. Bd3
{[%clk 01:33:32]} {[%emt 00:00:46]} O-O {[%clk 01:31:20]} {[%emt 00:01:13]} 10.
Nf3 {[%clk 01:33:57]} {[%emt 00:00:04]} a6 {[%clk 01:28:11]} {[%emt 00:03:39]}
11. a4 {[%clk 01:34:05]} {[%emt 00:00:22]} Nf6 {[%clk 01:27:05]} {[%emt
00:01:36]} 12. O-O {[%clk 01:33:45]} {[%emt 00:00:50]} Re8 {[%clk 01:22:00]}
{[%emt 00:05:35]} 13. Re1 {[%clk 01:32:40]} {[%emt 00:01:34]} Bg4 {[%clk
01:18:43]} {[%emt 00:03:47]} 14. h3 {[%clk 01:32:51]} {[%emt 00:00:19]} Bxf3
{[%clk 01:18:59]} {[%emt 00:00:14]} 15. Qxf3 {[%clk 01:33:19]} {[%emt
00:00:02]} Nbd7 {[%clk 01:15:01]} {[%emt 00:04:29]} 16. Be3 {[%clk 01:22:32]}
{[%emt 00:11:16]} Qb6 {[%clk 01:10:24]} {[%emt 00:05:06]} 17. Re2 {[%clk
01:02:57]} {[%emt 00:20:05]} Qb4 {[%clk 01:05:20]} {[%emt 00:05:34]} 18. a5
{[%emt 00:04:36]} c4 {[%clk 01:02:39]} {[%emt 00:02:37]} 19. Ra4 {[%clk
00:46:56]} {[%emt 00:12:59]} Qxa4 {[%clk 01:02:54]} {[%emt 00:00:15]} 20. Nxa4
{[%clk 00:47:24]} {[%emt 00:00:01]} cxd3 {[%clk 01:03:16]} {[%emt 00:00:08]} 21.
Rd2 {[%clk 00:46:59]} {[%emt 00:00:55]} Rxe4 {[%clk 00:58:31]} {[%emt
00:05:15]} 22. Nb6 {[%clk 00:36:00]} {[%emt 00:11:29]} Nxb6 {[%clk 00:45:59]}
{[%emt 00:13:02]} 23. Bxb6 {[%clk 00:36:26]} {[%emt 00:00:04]} Rc8 {[%clk
00:44:58]} {[%emt 00:01:31]} 24. Qxd3 {[%clk 00:27:55]} {[%emt 00:09:02]} Rxf4
{[%clk 00:33:09]} {[%emt 00:12:19]} 25. Rc2 {[%clk 00:24:28]} {[%emt 00:03:56]}
Re8 {[%clk 00:31:19]} {[%emt 00:02:19]} 26. Re2 {[%clk 00:24:09]} {[%emt
00:00:49]} Rc8 {[%clk 00:20:57]} {[%emt 00:10:52]} 27. Rc2 {[%clk 00:21:07]}
{[%emt 00:03:33]} Re8 {[%clk 00:21:20]} {[%emt 00:00:08]} 28. Re2 {[%clk
00:21:32]} {[%emt 00:00:04]} Rc8 {[%clk 00:19:10]} {[%emt 00:02:40]} 29. Rf2
{[%clk 00:15:26]} {[%emt 00:06:35]} Rc1+ {[%clk 00:13:56]} {[%emt 00:05:44]} 30.
Kh2 {[%clk 00:15:47]} {[%emt 00:00:09]} Rxf2 {[%clk 00:12:54]} {[%emt
00:01:33]} 31. Bxf2 {[%clk 00:16:16]} {[%emt 00:00:02]} Nd7 {[%clk 00:12:29]}
{[%emt 00:00:55]} 32. Qb3 {[%clk 00:06:31]} {[%emt 00:10:14]} Be5+ {[%clk
00:10:00]} {[%emt 00:02:59]} 33. Bg3 {[%clk 00:06:40]} {[%emt 00:00:21]} Rc7
{[%clk 00:09:59]} {[%emt 00:00:31]} 34. Qb4 {[%clk 00:06:15]} {[%emt 00:00:55]}
Bxg3+ {[%clk 00:09:48]} {[%emt 00:00:42]} 35. Kxg3 {[%clk 00:06:43]} {[%emt
00:00:01]} Nc5 {[%clk 00:10:11]} {[%emt 00:00:06]} 36. Qh4 {[%clk 00:04:18]}
{[%emt 00:02:55]} Rd7 {[%clk 00:09:17]} {[%emt 00:01:25]} 37. Qd4 {[%clk
00:04:47]} f5 {[%clk 00:08:40]} {[%emt 00:01:08]} 38. Kf4 {[%clk 00:03:46]}
{[%emt 00:01:30]} Rf7 {[%clk 00:06:52]} {[%emt 00:02:17]} 39. Qc3 {[%clk
00:02:31]} {[%emt 00:01:45]} g5+ {[%clk 00:04:34]} {[%emt 00:02:48]} 40. Kf3
{[%clk 00:03:00]} {[%emt 00:00:01]} Nd7 {[%clk 00:03:53]} {[%emt 00:01:11]} 41.
Qc8+ {[%clk 00:03:21]} {[%emt 00:00:09]} Kg7 {[%clk 00:04:11]} {[%emt
00:00:12]} 42. Kf2 {[%clk 00:02:37]} {[%emt 00:01:14]} Nf6 {[%clk 00:02:59]}
{[%emt 00:01:43]} 43. Qe6 {[%clk 00:02:30]} {[%emt 00:00:36]} f4 {[%clk
00:02:16]} {[%emt 00:01:13]} 44. Kf3 {[%clk 00:01:26]} {[%emt 00:01:34]} Kg6
{[%clk 00:02:05]} {[%emt 00:00:42]} 45. b4 {[%clk 00:00:59]} {[%emt 00:00:57]}
Rd7 {[%clk 00:02:08]} {[%emt 00:00:27]} 46. h4 {[%clk 00:00:44]} {[%emt
00:00:44]} gxh4 {[%clk 00:01:20]} {[%emt 00:01:19]} 47. Kxf4 {[%clk 00:01:13]}
Rd8 {[%clk 00:00:36]} {[%emt 00:01:14]} 48. Qf5+ {[%clk 00:01:26]} {[%emt
00:00:16]} Kf7 {[%clk 00:00:52]} {[%emt 00:00:14]} 49. Qe6+ {[%clk 00:00:52]}
{[%emt 00:01:05]} Kg6 {[%clk 00:01:21]} 50. Qf5+ {[%clk 00:01:17]} {[%emt
00:00:05]} Kf7 {[%clk 00:01:48]} {[%emt 00:00:03]} 51. Kg5 {[%clk 00:00:57]}
{[%emt 00:00:50]} Rg8+ {[%clk 00:02:13]} {[%emt 00:00:05]} 52. Kxh4 {[%clk
00:01:26]} {[%emt 00:00:01]} Rg4+ {[%clk 00:01:27]} {[%emt 00:01:16]} 53. Kh3
{[%clk 00:01:43]} {[%emt 00:00:12]} Rxb4 {[%clk 00:01:42]} {[%emt 00:00:16]} 54.
Qe6+ {[%clk 00:01:44]} {[%emt 00:00:29]} Kg6 {[%clk 00:01:56]} {[%emt
00:00:16]} 55. Qxd6 {[%clk 00:02:09]} {[%emt 00:00:05]} Rb5 {[%clk 00:01:41]}
{[%emt 00:00:45]} 56. Qg3+ {[%clk 00:02:24]} {[%emt 00:00:15]} Kf5 {[%clk
00:01:29]} {[%emt 00:00:42]} 57. Qf3+ {[%clk 00:02:50]} {[%emt 00:00:04]} Kg6
{[%clk 00:01:33]} {[%emt 00:00:26]} 58. Qg3+ {[%clk 00:02:39]} {[%emt
00:00:41]} Kh6 {[%clk 00:01:20]} {[%emt 00:00:44]} 59. Qe3+ {[%clk 00:02:27]}
{[%emt 00:00:41]} Kg6 {[%clk 00:01:46]} {[%emt 00:00:04]} 60. d6 {[%clk
00:01:30]} {[%emt 00:01:27]} Rh5+ {[%clk 00:01:45]} {[%emt 00:00:31]} 61. Kg3
{[%clk 00:01:59]} Rg5+ {[%clk 00:01:38]} {[%emt 00:00:37]} 62. Kf3 {[%clk
00:02:18]} {[%emt 00:00:11]} Rf5+ {[%clk 00:01:54]} {[%emt 00:00:15]} 63. Ke2
{[%clk 00:02:21]} {[%emt 00:00:27]} Rd5 {[%clk 00:01:48]} {[%emt 00:00:36]} 64.
Qe6 {[%clk 00:02:38]} {[%emt 00:00:12]} Kg5 {[%clk 00:01:16]} {[%emt 00:01:02]}
65. Ke1 {[%clk 00:01:42]} {[%emt 00:01:25]} Rd3 {[%clk 00:00:49]} {[%emt
00:00:56]} 66. Qe5+ {[%clk 00:01:47]} {[%emt 00:00:26]} Kg6 {[%clk 00:01:08]}
{[%emt 00:00:11]} 67. g3 {[%clk 00:00:42]} {[%emt 00:01:35]} h5 {[%clk
00:01:13]} {[%emt 00:00:26]} 68. Ke2 {[%clk 00:00:51]} {[%emt 00:00:22]} Rb3
{[%clk 00:00:34]} {[%emt 00:01:09]} 69. d7 {[%emt 00:00:36]} Rd3 {[%emt
00:00:04]} 1-0

[Event "CAMPEONATO NACIONAL ABSOLUTO DE CHILE 2019"]
[Site "Torre ENTEL, Chile"]
[Date "2019.02.23"]
[Round "5.3"]
[White "Olivares Olivares, Claudio"]
[Black "Henriquez Villagra, Cristobal"]
[Result "0-1"]
[TimeControl "90 minutos mas 30 segundos incremento por movida"]
[WhiteTitle "FM"]
[BlackTitle "GM"]
[WhiteFideId "3400786"]
[BlackFideId "3409350"]
[WhiteElo "2387"]
[BlackElo "2508"]

1. e4 {[%clk 01:30:57]} {[%emt 00:00:02]} c6 {[%clk 01:30:55]} {[%emt
00:00:06]} 2. d4 {[%clk 01:31:07]} {[%emt 00:00:20]} d5 {[%clk 01:31:21]}
{[%emt 00:00:04]} 3. Nc3 {[%clk 01:31:33]} {[%emt 00:00:05]} dxe4 {[%clk
01:31:46]} {[%emt 00:00:05]} 4. Nxe4 {[%clk 01:31:57]} {[%emt 00:00:05]} Nf6
{[%clk 01:32:11]} {[%emt 00:00:05]} 5. Nxf6+ {[%clk 01:32:22]} {[%emt
00:00:05]} exf6 {[%clk 01:32:37]} {[%emt 00:00:04]} 6. c3 {[%clk 01:32:43]}
{[%emt 00:00:08]} Bd6 {[%clk 01:33:04]} {[%emt 00:00:04]} 7. Bd3 {[%clk
01:33:05]} {[%emt 00:00:06]} O-O {[%clk 01:33:30]} {[%emt 00:00:06]} 8. Qc2
{[%clk 01:33:29]} {[%emt 00:00:06]} Re8+ {[%clk 01:33:57]} {[%emt 00:00:03]} 9.
Ne2 {[%clk 01:33:53]} {[%emt 00:00:06]} h5 {[%clk 01:34:24]} {[%emt 00:00:04]}
10. O-O {[%clk 01:34:07]} {[%emt 00:00:16]} h4 {[%clk 01:34:49]} {[%emt
00:00:05]} 11. Bf4 {[%clk 01:34:29]} {[%emt 00:00:08]} h3 {[%clk 01:25:38]}
{[%emt 00:09:41]} 12. g3 {[%clk 01:34:22]} {[%emt 00:00:37]} Bxf4 {[%clk
01:10:26]} {[%emt 00:15:42]} 13. Nxf4 {[%clk 01:34:15]} {[%emt 00:00:37]} g5
{[%clk 01:04:47]} {[%emt 00:06:10]} 14. Bc4 {[%clk 01:28:16]} {[%emt 00:06:29]}
f5 {[%clk 00:53:40]} {[%emt 00:11:37]} 15. Nxh3 {[%clk 01:26:18]} {[%emt
00:02:28]} Kg7 {[%clk 00:41:30]} {[%emt 00:12:41]} 16. f4 {[%clk 00:58:55]}
{[%emt 00:27:54]} g4 {[%clk 00:41:55]} {[%emt 00:00:04]} 17. Ng5 {[%clk
00:51:37]} {[%emt 00:07:47]} f6 {[%clk 00:41:49]} {[%emt 00:00:37]} 18. Nf7
{[%clk 00:51:39]} {[%emt 00:00:28]} Qc7 {[%clk 00:41:59]} {[%emt 00:00:20]} 19.
Rae1 {[%clk 00:51:59]} {[%emt 00:00:10]} Rf8 {[%clk 00:42:07]} {[%emt
00:00:23]} 20. Re3 {[%clk 00:49:52]} {[%emt 00:02:36]} b5 {[%clk 00:39:33]}
{[%emt 00:03:04]} 21. Bb3 {[%clk 00:37:03]} {[%emt 00:13:19]} a5 {[%clk
00:39:57]} {[%emt 00:00:07]} 22. Qe2 {[%clk 00:20:48]} {[%emt 00:16:44]} Ra7
{[%clk 00:32:09]} {[%emt 00:08:18]} 23. Re8 {[%clk 00:08:21]} {[%emt 00:12:57]}
a4 {[%clk 00:25:44]} {[%emt 00:06:55]} 24. Re1 {[%clk 00:07:15]} {[%emt
00:01:36]} Qd7 {[%clk 00:19:21]} {[%emt 00:06:54]} 25. Rxf8 {[%clk 00:05:28]}
{[%emt 00:02:17]} Kxf8 {[%clk 00:15:22]} {[%emt 00:04:29]} 26. Ne5 {[%clk
00:03:42]} {[%emt 00:02:15]} Qd8 {[%clk 00:04:55]} {[%emt 00:10:57]} 27. Bc2
{[%clk 00:02:39]} {[%emt 00:01:33]} Kg7 {[%clk 00:03:33]} {[%emt 00:01:52]} 28.
Nd3 {[%clk 00:02:56]} {[%emt 00:00:13]} Na6 {[%clk 00:03:07]} {[%emt 00:00:57]}
29. a3 {[%clk 00:02:51]} {[%emt 00:00:34]} Rf7 {[%clk 00:02:56]} {[%emt
00:00:40]} 30. Qe8 {[%clk 00:01:31]} {[%emt 00:01:51]} Qc7 {[%clk 00:03:10]}
{[%emt 00:00:16]} 31. Qe3 {[%clk 00:00:48]} {[%emt 00:01:12]} c5 {[%clk
00:02:57]} {[%emt 00:00:44]} 32. Nxc5 {[%clk 00:00:42]} {[%emt 00:00:35]} Nxc5
{[%clk 00:03:23]} {[%emt 00:00:03]} 33. dxc5 {[%clk 00:01:07]} {[%emt
00:00:05]} Qc6 {[%clk 00:03:46]} {[%emt 00:00:08]} 34. Kf2 {[%clk 00:00:32]}
{[%emt 00:01:05]} Bb7 {[%clk 00:03:43]} {[%emt 00:00:33]} 35. Rg1 {[%clk
00:00:32]} {[%emt 00:00:31]} Kf8 {[%clk 00:04:10]} {[%emt 00:00:03]} 36. Bxf5
{[%clk 00:00:32]} {[%emt 00:00:30]} Re7 {[%clk 00:04:36]} {[%emt 00:00:04]} 37.
Qd3 {[%clk 00:00:53]} {[%emt 00:00:09]} Qxc5+ {[%clk 00:04:34]} {[%emt
00:00:33]} 38. Kf1 {[%clk 00:01:12]} {[%emt 00:00:11]} Bd5 {[%clk 00:04:56]}
{[%emt 00:00:07]} 0-1

[Event "CAMPEONATO NACIONAL ABSOLUTO DE CHILE 2019"]
[Site "Torre ENTEL, Chile"]
[Date "2019.02.23"]
[Round "5.4"]
[White "Tapia Fuentes, Jaime"]
[Black "Salinas Herrera, Pablo"]
[Result "0-1"]
[TimeControl "90 minutos mas 30 segundos incremento por movida"]
[WhiteTitle "FM"]
[BlackTitle "IM"]
[WhiteFideId "3403025"]
[BlackFideId "3407128"]
[WhiteElo "2259"]
[BlackElo "2477"]

1. e4 {[%clk 01:30:57]} {[%emt 00:00:02]} c5 {[%clk 01:18:58]} {[%emt
00:12:03]} 2. Nf3 {[%clk 01:31:16]} {[%emt 00:00:10]} e6 {[%clk 01:19:23]}
{[%emt 00:00:06]} 3. d4 {[%clk 01:31:42]} {[%emt 00:00:04]} cxd4 {[%clk
01:19:50]} {[%emt 00:00:04]} 4. Nxd4 {[%clk 01:32:07]} {[%emt 00:00:05]} a6
{[%clk 01:20:16]} {[%emt 00:00:04]} 5. Bd3 {[%clk 01:32:30]} {[%emt 00:00:06]}
g6 {[%clk 01:20:42]} {[%emt 00:00:05]} 6. b3 {[%clk 01:29:55]} {[%emt
00:03:05]} Bg7 {[%clk 01:18:02]} {[%emt 00:03:10]} 7. Bb2 {[%clk 01:29:27]}
{[%emt 00:00:57]} Qb6 {[%clk 01:17:17]} {[%emt 00:01:16]} 8. c3 {[%clk
01:29:12]} {[%emt 00:00:45]} Ne7 {[%clk 01:09:59]} {[%emt 00:07:48]} 9. Nd2
{[%clk 01:27:40]} {[%emt 00:02:01]} Qc7 {[%clk 01:05:48]} {[%emt 00:04:41]} 10.
O-O {[%clk 01:23:43]} {[%emt 00:04:26]} O-O {[%clk 01:01:27]} {[%emt 00:04:52]}
11. N2f3 {[%clk 01:16:47]} {[%emt 00:07:26]} d5 {[%clk 00:57:58]} {[%emt
00:03:59]} 12. e5 {[%clk 00:57:51]} {[%emt 00:19:26]} Nd7 {[%clk 00:58:16]}
{[%emt 00:00:13]} 13. c4 {[%clk 00:44:25]} {[%emt 00:13:55]} Nxe5 {[%clk
00:57:19]} {[%emt 00:01:27]} 14. Rc1 {[%clk 00:44:35]} {[%emt 00:00:20]} Nxd3
{[%clk 00:54:51]} {[%emt 00:02:58]} 15. Qxd3 {[%clk 00:45:03]} {[%emt
00:00:02]} e5 {[%clk 00:54:33]} {[%emt 00:00:48]} 16. cxd5 {[%clk 00:44:10]}
{[%emt 00:01:24]} Qd8 {[%clk 00:54:48]} {[%emt 00:00:15]} 17. Ne2 {[%clk
00:43:01]} {[%emt 00:01:38]} e4 {[%clk 00:55:14]} {[%emt 00:00:05]} 0-1

[Event "CAMPEONATO NACIONAL ABSOLUTO DE CHILE 2019"]
[Site "Torre ENTEL, Chile"]
[Date "2019.02.23"]
[Round "5.5"]
[White "Aguirre Contreras, Cristian"]
[Black "Lopez Silva, Hugo"]
[Result "1-0"]
[TimeControl "90 minutos mas 30 segundos incremento por movida"]
[WhiteTitle "FM"]
[WhiteFideId "3412776"]
[BlackFideId "3403874"]
[WhiteElo "2252"]
[BlackElo "2413"]

1. d4 {[%clk 01:30:57]} {[%emt 00:00:03]} Nf6 {[%clk 01:29:53]} {[%emt
00:01:07]} 2. Nf3 {[%clk 01:30:42]} {[%emt 00:00:45]} c5 {[%clk 01:29:35]}
{[%emt 00:00:49]} 3. e3 {[%clk 01:30:09]} {[%emt 00:01:04]} g6 {[%clk
01:27:56]} {[%emt 00:02:08]} 4. Be2 {[%clk 01:30:08]} {[%emt 00:00:32]} Bg7
{[%clk 01:28:11]} {[%emt 00:00:14]} 5. O-O {[%clk 01:30:28]} {[%emt 00:00:10]}
cxd4 {[%clk 01:25:01]} {[%emt 00:03:40]} 6. exd4 {[%clk 01:29:24]} {[%emt
00:01:34]} d5 {[%clk 01:23:51]} {[%emt 00:01:39]} 7. Bf4 {[%clk 01:20:28]}
{[%emt 00:09:27]} O-O {[%clk 01:18:33]} {[%emt 00:05:47]} 8. h3 {[%clk
01:16:34]} {[%emt 00:04:25]} Qb6 {[%clk 01:15:38]} {[%emt 00:03:25]} 9. Nc3
{[%clk 01:13:52]} {[%emt 00:03:12]} Nc6 {[%clk 01:07:58]} {[%emt 00:08:09]} 10.
Nb5 {[%clk 01:08:03]} {[%emt 00:06:20]} Ne8 {[%clk 01:06:46]} {[%emt 00:01:42]}
11. Qd2 {[%clk 01:00:51]} {[%emt 00:07:43]} a6 {[%clk 00:52:03]} {[%emt
00:15:13]} 12. Nc3 {[%clk 01:00:52]} {[%emt 00:00:28]} Nf6 {[%clk 00:52:04]}
{[%emt 00:00:28]} 13. Na4 {[%clk 00:57:48]} {[%emt 00:03:35]} Qa7 {[%clk
00:49:05]} {[%emt 00:03:29]} 14. c4 {[%clk 00:37:31]} {[%emt 00:20:47]} Be6
{[%clk 00:08:24]} {[%emt 00:41:11]} 15. c5 {[%clk 00:36:29]} {[%emt 00:01:32]}
Nd7 {[%clk 00:07:59]} {[%emt 00:00:54]} 16. Rac1 {[%clk 00:24:35]} {[%emt
00:12:25]} Rfe8 {[%clk 00:07:27]} {[%emt 00:01:02]} 17. Rfd1 {[%clk 00:22:20]}
{[%emt 00:02:44]} f6 {[%clk 00:07:25]} {[%emt 00:00:32]} 18. Nh2 {[%clk
00:20:33]} {[%emt 00:02:17]} Bf7 {[%clk 00:04:27]} {[%emt 00:03:29]} 19. Ng4
{[%clk 00:19:20]} {[%emt 00:01:42]} g5 {[%clk 00:02:58]} {[%emt 00:01:57]} 20.
Bh2 {[%clk 00:14:46]} {[%emt 00:05:04]} f5 {[%clk 00:01:04]} {[%emt 00:02:25]}
21. Ne5 {[%clk 00:15:11]} {[%emt 00:00:05]} Ncxe5 {[%clk 00:00:44]} {[%emt
00:00:50]} 22. dxe5 {[%clk 00:15:11]} {[%emt 00:00:30]} f4 {[%clk 00:00:41]}
{[%emt 00:00:33]} 23. h4 {[%clk 00:13:49]} {[%emt 00:01:52]} Nxe5 {[%emt
00:00:41]} 24. hxg5 {[%clk 00:14:08]} {[%emt 00:00:10]} Ng6 {[%clk 00:00:37]}
{[%emt 00:00:24]} 25. Bxf4 {[%clk 00:11:55]} {[%emt 00:02:43]} e5 {[%clk
00:00:32]} {[%emt 00:00:35]} 26. Bg3 {[%clk 00:11:59]} {[%emt 00:00:26]} Rad8
{[%clk 00:00:55]} {[%emt 00:00:07]} 27. Bf3 {[%clk 00:11:47]} {[%emt 00:00:42]}
e4 {[%clk 00:00:36]} {[%emt 00:00:50]} 28. Bh5 {[%clk 00:10:41]} {[%emt
00:01:37]} d4 {[%clk 00:00:49]} {[%emt 00:00:16]} 29. Nb6 {[%clk 00:10:27]}
{[%emt 00:00:44]} Bxa2 {[%emt 00:00:46]} 30. Bc7 {[%clk 00:10:32]} {[%emt
00:00:25]} Bf7 {[%clk 00:00:33]} {[%emt 00:00:31]} 31. b4 {[%clk 00:09:38]}
{[%emt 00:01:24]} Be5 {[%clk 00:00:34]} {[%emt 00:00:28]} 32. Bxd8 {[%clk
00:09:40]} {[%emt 00:00:28]} Rxd8 {[%emt 00:00:10]} 33. g3 {[%clk 00:09:37]}
{[%emt 00:00:33]} Qb8 {[%clk 00:00:55]} {[%emt 00:00:30]} 34. Nc4 {[%clk
00:08:42]} {[%emt 00:01:25]} e3 {[%clk 00:00:31]} {[%emt 00:00:53]} 35. Nxe3
{[%clk 00:08:41]} {[%emt 00:00:31]} Bb3 {[%clk 00:00:32]} {[%emt 00:00:29]} 36.
Ng4 {[%clk 00:04:45]} {[%emt 00:04:25]} Bxd1 {[%clk 00:00:56]} {[%emt
00:00:07]} 37. Rxd1 {[%clk 00:05:08]} {[%emt 00:00:07]} d3 {[%clk 00:00:32]}
{[%emt 00:00:54]} 38. Nxe5 {[%clk 00:04:22]} {[%emt 00:01:16]} Qxe5 {[%clk
00:00:33]} {[%emt 00:00:29]} 39. Re1 {[%clk 00:04:30]} {[%emt 00:00:22]} Qd5
{[%clk 00:00:32]} {[%emt 00:00:31]} 40. Bxg6 {[%clk 00:03:37]} {[%emt
00:01:23]} hxg6 {[%clk 00:01:02]} 41. Re7 {[%clk 00:03:45]} {[%emt 00:00:21]}
Qf3 {[%clk 00:00:32]} {[%emt 00:01:00]} 42. Qc3 {[%clk 00:02:25]} {[%emt
00:01:50]} Qf8 {[%clk 00:00:31]} {[%emt 00:00:32]} 43. Qc4+ {[%clk 00:02:47]}
{[%emt 00:00:08]} Kh8 {[%clk 00:01:00]} 44. Qh4+ {[%clk 00:03:08]} {[%emt
00:00:08]} 1-0